Cogmind - Beta 13 @@@ ROGUE MODE // 2024.04.12 @ 23:09:12 Player: Lunace Result: Destroyed by 8R-AWN with 8R-AWN's Boregun Performance ------------- Evolutions (1) 500 Regions Visited (5) 1000 Robots Destroyed (41) 205 Value Destroyed (930) 930 Prototype IDs (29) 580 Alien Tech Used (0) 0 Bonus (320) 320 TOTAL SCORE: 3535 Bonus ------- High Alert Combat Kills 20 Aligned with FarCom 300 Cogmind --------- Core Integrity 0/400 Matter 355/500 Energy 40/100 System Corruption 3% Temperature Cool (0) Movement Core (700) Ox13 Location -9/Exiles Parts ------- > --- POWER (1) -------- (None) > --- PROPULSION (4) --- (None) > --- UTILITY (2) ------ Large Storage Unit High-capacity Matter Pod > --- WEAPON (2) ------- YOLO Cannon > --- INVENTORY (15) --- Ion Engine Wheel Wheel High-capacity Battery (182) Medium Matter Pod (0) Structural Scanner Terrain Scanner Heavy Assault Rifle Improved Assault Rifle Improved Assault Rifle Improved Assault Rifle Mini Grenade Launcher Peak State ------------ > --- POWER ------------ Improved Ion Engine > --- PROPULSION ------- Light Treads Light Treads Light Treads Aluminum Leg > --- UTILITY ---------- Large Storage Unit High-capacity Matter Pod > --- WEAPON ----------- YOLO Cannon > --- INVENTORY -------- Ion Engine Wheel Wheel High-capacity Battery High-capacity Battery Medium Matter Pod Structural Scanner Terrain Scanner Heavy Assault Rifle Improved Assault Rifle Improved Assault Rifle Improved Assault Rifle Mini Grenade Launcher [Rating: 30] Favorites ----------- Power Ion Engine Engine Ion Engine Propulsion Light Treads Treads Light Treads Leg Aluminum Leg Wheel Wheel Utility Large Storage Unit Device Terrain Scanner Storage Large Storage Unit Processor Visual Processing Unit Protection Light Armor Plating Weapon Assault Rifle Energy Gun Small Laser Energy Cannon YOLO Cannon Ballistic Gun Assault Rifle Launcher Grenade Launcher Build | -11 -10 -10 -9 -9 -9 ------- Run | Yrd Mat Min Mat Min Exi Slots Evolved 2 | . . . 2 . . Power . | . . . . . . Propulsion 2 | . . . 2 . . Utility . | . . . . . . Weapon . | . . . . . . Parts Attached 56 | 7 9 7 29 . 4 Power 6 | 1 . 1 4 . . Engine 6 | 1 . 1 4 . . Core . | . . . . . . Reactor . | . . . . . . Propulsion 18 | 2 2 2 12 . . Treads 13 | 2 2 1 8 . . Leg 1 | . . . 1 . . Wheel 4 | . . 1 3 . . Hover . | . . . . . . Flight . | . . . . . . Utility 11 | 2 4 2 3 . . Device 3 | 1 2 . . . . Storage 4 | 1 1 . 2 . . Processor 1 | . 1 . . . . Hackware . | . . . . . . Protection 3 | . . 2 1 . . Artifact . | . . . . . . Weapon 21 | 2 3 2 10 . 4 Energy Gun 4 | 1 1 1 1 . . Energy Cannon 2 | . . . . . 2 Ballistic Gun 13 | 1 1 . 9 . 2 Ballistic Cannon . | . . . . . . Launcher 2 | . 1 1 . . . Special Weapon . | . . . . . . Impact Weapon . | . . . . . . Slashing Weapon . | . . . . . . Piercing Weapon . | . . . . . . Special Melee Weapon . | . . . . . . Unidentified Prototypes . | . . . . . . Parts Lost 18 | . . 5 8 . 5 Power 3 | . . 1 1 . 1 Propulsion 9 | . . 2 3 . 4 Utility 2 | . . 1 1 . . Weapon 4 | . . 1 3 . . Highest Loss Streak 5 | . . 4 5 . 5 To Critical Strikes 1 | . . . . . 1 Average Slot Usage (%) 97 | . 99 100 94 100 89 Engine 12 | . 14 14 11 11 9 Treads 27 | . 28 26 27 33 29 Leg 2 | . . . 1 11 9 Wheel 3 | . . 1 10 . . Device 5 | . 11 6 . . . Storage 15 | . 14 14 15 22 22 Processor 1 | . 2 . . . . Protection 2 | . . 7 6 . . Energy Gun 5 | . 10 8 1 . . Ballistic Gun 16 | . 13 14 20 22 16 Launcher 2 | . 3 5 . . . Naked Turns . | . . . . . . Heaviest Build 49 | 15 31 31 37 37 49 Greatest Support 92 | 40 40 40 92 60 60 Greatest Overweight (x) 1 | 1 . 1 1 . 1 Average Overweight (x) . | . . . . . . Largest Inventory Capacity 15 | 8 15 15 15 15 15 Average Capacity 14 | 7 14 15 15 15 15 Most Carried 15 | 6 15 15 15 14 15 Average Carried 10 | 3 7 13 12 14 13 Final Capacity 15 | 8 15 15 15 15 15 Final Carried 15 | 6 15 12 14 14 12 Class Distribution -------------------- 81% | Mutant 18% | Scavenger-Mutant Dominant Class ---------------- Mutant | -10/Materials Mutant | -10/Mines Mutant | -9/Materials Scavenger-Mutant | -9/Mines Scavenger-Mutant | -9/Exiles Resources | -11 -10 -10 -9 -9 -9 ----------- Run | Yrd Mat Min Mat Min Exi Matter Collected 1329 | 288 153 143 733 . 12 Remotely . | . . . . . . Salvage Created 1215 | 126 208 150 712 . 19 Parts 82 | 7 16 11 48 . . Haulers Intercepted 2 | . . . 2 . . Recyclers Shooed 3 | . . . 3 . . Parts Field Recycled . | . . . . . . Retrieved Matter . | . . . . . . Parts Self-Destructed . | . . . . . . Prevented . | . . . . . . Kills | -11 -10 -10 -9 -9 -9 ------- Run | Yrd Mat Min Mat Min Exi Combat Hostiles Destroyed 38 | . 7 9 16 . 6 Guns 30 | . 7 6 16 . 1 Cannons 1 | . . . . . 1 AOE 6 | . . 3 . . 3 Classes Destroyed 12 | 2 4 1 4 . 1 Worker 1 | . . . 1 . . Tunneler 2 | 2 . . . . . Hauler 2 | . . . 2 . . Recycler 1 | 1 . . . . . Watcher 3 | . 1 . 2 . . Swarmer 15 | . 3 5 7 . . Grunt 10 | . 3 2 5 . . Duelist 1 | . . . 1 . . Sentry 3 | . . . 3 . . Demolisher 2 | . . 2 . . . Subdweller 1 | . 1 . . . . Assembled 6 | . . . . . 6 Best Kill Streak 12 | 3 3 3 12 . 6 Combat Bots Only 12 | . 3 3 12 . 6 Max Kills in Single Turn 4 | 1 1 2 2 . 4 Gunslinging 1 | . . . 1 . . Exploded 3 | . . 2 . . 3 Melee . | . . . . . . Uniques/NPCs Destroyed . | . . . . . . Combat | -11 -10 -10 -9 -9 -9 -------- Run | Yrd Mat Min Mat Min Exi Hostile Shots Fired 284 | . 37 60 142 . 45 Missed 64 | . 4 19 31 . 10 Damage Taken 3298 | . 420 658 1510 . 710 Core 556 | . 80 75 251 . 150 Absorbed by Shields . | . . . . . . Regen/Repaired (Parts) 96 | . 96 . . . . Core Remaining (%) 69 | 100 . 38 . . . Volleys Fired 142 | 6 34 18 72 . 12 Largest 2 | 2 2 2 2 . 2 Hottest 100 | 70 60 60 60 . 100 Shots Fired 236 | 12 42 33 134 . 15 Gun 219 | 12 42 27 134 . 4 Cannon 11 | . . . . . 11 Launcher 6 | . . 6 . . . Special . | . . . . . . Kinetic 190 | 6 33 15 132 . 4 Thermal 40 | 6 9 12 2 . 11 Explosive 6 | . . 6 . . . Electromagnetic . | . . . . . . Robot Hit Streak 26 | 8 7 7 26 . 3 Robot Miss Streak 4 | 1 2 3 4 . 3 Penetration Max . | . . . . . . Secondary Targets 2 | . . 1 1 . . Max Gunslinging Chain 1 | . . 1 1 . . Shots Hit Robots 164 | 9 30 21 99 . 5 Core Hits 71 | 4 12 12 35 . 8 Critical Kills 1 | . . . . . 1 Critical Parts Destroyed . | . . . . . . Critical Strikes 2 | 1 . . . . 1 Burn 1 | 1 . . . . . Meltdown 1 | . . . . . 1 Melee Attacks . | . . . . . . Impact . | . . . . . . Slashing . | . . . . . . Piercing . | . . . . . . Sneak Attacks . | . . . . . . Combat Hostiles . | . . . . . . Follow-up Attacks . | . . . . . . Damage Inflicted 2777 | 133 366 371 1251 . 656 Guns 1982 | 133 366 204 1251 . 28 Cannons 245 | . . . . . 245 Explosions 550 | . . 167 . . 383 Melee . | . . . . . . Ramming . | . . . . . . Kinetic 1769 | 72 310 128 1231 . 28 Thermal 841 | 61 56 76 20 . 628 Explosive 167 | . . 167 . . . Electromagnetic . | . . . . . . Impact . | . . . . . . Slashing . | . . . . . . Piercing . | . . . . . . Highest Corruption 3 | . . . 3 3 3 Average Corruption 2 | . . . 2 3 3 Corruption Purged . | . . . . . . Corruption Blocked . | . . . . . . Effects 8 | . . . . 2 6 Message Errors 2 | . . . . 1 1 Matter Fused 2 | . . . . . 2 Heat Flow Errors 1 | . . . . 1 . Energy Discharges 1 | . . . . . 1 Data Loss (major) 1 | . . . . . 1 Misfires 1 | . . . . . 1 Overload Shots . | . . . . . . Overflow Damage 58 | . . 10 . . 48 Projectiles 2 | . . . . . 2 Explosions 56 | . . 10 . . 46 Melee . | . . . . . . Knockbacks . | . . . . . . Impact . | . . . . . . Kinetic . | . . . . . . Secondary . | . . . . . . Self-Inflicted Damage 91 | . . 28 . . 63 Shots 2 | . . 1 . . 1 Rammed . | . . . . . . Targets Rammed . | . . . . . . Kicked . | . . . . . . Crushed . | . . . . . . Highest Temperature 132 | 36 54 132 18 115 48 Average Temperature 33 | 15 26 52 7 66 26 Received Heat Transfer 669 | . 198 84 387 . . Siege Activations . | . . . . . . Robots Corrupted . | . . . . . . Combat Hostiles . | . . . . . . Parts Fried . | . . . . . . Impact Corruptions . | . . . . . . Robots Melted 1 | . . . . . 1 Combat Hostiles 1 | . . . . . 1 Parts Melted 3 | 1 1 . 1 . . Heat Transferred 1329 | 259 125 175 50 . 720 Parts Sabotaged . | . . . . . . Parts Stolen . | . . . . . . Parts Stripped . | . . . . . . Power Chain Reactions . | . . . . . . Alert | -11 -10 -10 -9 -9 -9 ------- Run | Yrd Mat Min Mat Min Exi Peak Influence 472 | 15 181 242 472 169 . Initial 169 | . 9 20 94 169 . Average 130 | 5 47 141 262 169 . Maximum Alert Level 2 | . . 1 2 . . Low Security (%) 74 | 100 100 67 33 100 . Level 1 20 | . . 32 51 . . Level 2 4 | . . . 14 . . Level 3 . | . . . . . . Level 4 . | . . . . . . Level 5 . | . . . . . . High Security . | . . . . . . Max Security . | . . . . . . Squads Dispatched 2 | . 1 . 1 . . Investigation 1 | . . . 1 . . Extermination . | . . . . . . Reinforcement 1 | . 1 . . . . Assault . | . . . . . . Garrison . | . . . . . . Intercept . | . . . . . . Searches Triggered . | . . . . . . Construction Impeded . | . . . . . . Haulers Reinforced . | . . . . . . Active Scanning Responses . | . . . . . . Cargo Convoy Interrupts . | . . . . . . Stealth | -11 -10 -10 -9 -9 -9 --------- Run | Yrd Mat Min Mat Min Exi Distress Signals 4 | . 2 . 2 . . Communications Jammed . | . . . . . . Distress Signals . | . . . . . . Times Spotted 50 | . 11 10 26 . 3 Peak Tracking Total 9 | . 3 3 8 . 9 Tactical Retreats 3 | . 1 1 1 . . Traps | -11 -10 -10 -9 -9 -9 ------- Run | Yrd Mat Min Mat Min Exi Traps Triggered 3 | . 1 . 2 . . Indirectly . | . . . . . . Trap Hack Attempts . | . . . . . . Triggered . | . . . . . . Disarmed . | . . . . . . Reprogrammed . | . . . . . . Reused . | . . . . . . Traps Extracted . | . . . . . . Installed . | . . . . . . Triggered . | . . . . . . Machines | -11 -10 -10 -9 -9 -9 ---------- Run | Yrd Mat Min Mat Min Exi Machines Disabled 5 | . . . . . 5 Max in Single Turn 2 | . . . . . 2 Machines Repaired . | . . . . . . Machines Dismantled . | . . . . . . Machines Sabotaged . | . . . . . . Overloaded Fab Kills . | . . . . . . Hacking | -11 -10 -10 -9 -9 -9 --------- Run | Yrd Mat Min Mat Min Exi Machines Accessed 12 | . 7 . 4 . 1 Terminals 8 | . 6 . 2 . . Fabricators . | . . . . . . Repair Stations 2 | . 1 . 1 . . Recycling Units . | . . . . . . Scanalyzers 1 | . . . 1 . . Garrison Access . | . . . . . . Total Hacks 27 | . 17 . 9 . 1 Successful 10 | . 6 . 3 . 1 Failed 17 | . 11 . 6 . . Catastrophic 6 | . 6 . . . . Database Lockouts . | . . . . . . Manual 20 | . 14 . 5 . 1 Terminals 18 | . 14 . 4 . . Fabricators . | . . . . . . Repair Stations 7 | . 3 . 4 . . Recycling Units . | . . . . . . Scanalyzers 1 | . . . 1 . . Garrison Access . | . . . . . . Terminal Hacks 4 | . 3 . . . 1 Prototype ID Bank 2 | . 2 . . . . Branch Access Points 1 | . 1 . . . . Derelict Proto ID Bank 1 | . . . . . 1 Fabricator Hacks . | . . . . . . Repair Station Hacks 3 | . 2 . 1 . . Scan Component 2 | . 1 . 1 . . Repair 1 | . 1 . . . . Recycling Unit Hacks . | . . . . . . Scanalyzer . | . . . . . . Garrison Access Hacks . | . . . . . . Unauthorized Hacks 3 | . 1 . 2 . . Terminals 2 | . 1 . 1 . . Operators 2 | . 1 . 1 . . Fabricators . | . . . . . . Repair Stations . | . . . . . . Recycling Units . | . . . . . . Scanalyzers 1 | . . . 1 . . Extract 1 | . . . 1 . . Garrison Access . | . . . . . . Data Cores Recovered . | . . . . . . Used . | . . . . . . Hacking Detections 9 | . 6 . 3 . . Full Trace Events . | . . . . . . Feedback Events . | . . . . . . Feedback Blocked . | . . . . . . Robot Schematics Acquired . | . . . . . . Robots Built . | . . . . . . Authchips . | . . . . . . Time . | . . . . . . Total Robot Build Rating . | . . . . . . Part Schematics Acquired 2 | . . . 2 . . Parts Built . | . . . . . . Authchips . | . . . . . . Time . | . . . . . . Total Part Build Rating . | . . . . . . Parts Repaired 1 | . 1 . . . . Time 26 | . 26 . . . . Parts Recycled . | . . . . . . Recycled Matter . | . . . . . . Retrieved Matter . | . . . . . . Retrieved Components . | . . . . . . Parts Scanalyzed . | . . . . . . Part Schematics Acquired . | . . . . . . Parts Damaged . | . . . . . . Bothacking | -11 -10 -10 -9 -9 -9 ------------ Run | Yrd Mat Min Mat Min Exi Used RIF Installer . | . . . . . . Robots Hacked . | . . . . . . Non-combat . | . . . . . . Combat . | . . . . . . Robot Hacks Applied . | . . . . . . Relay Couplers Released . | . . . . . . Fabnet Peak Effective % . | . . . . . . Robots Rewired . | . . . . . . Allies Hacked . | . . . . . . Hacks Repelled . | . . . . . . Allies | -11 -10 -10 -9 -9 -9 -------- Run | Yrd Mat Min Mat Min Exi Total Allies . | . . . . . . Largest Group . | . . . . . . Highest-Rated Group . | . . . . . . Highest-Rated Ally . | . . . . . . Total Orders . | . . . . . . Ally Attacks . | . . . . . . Total Damage . | . . . . . . Kills . | . . . . . . Allies Corrupted . | . . . . . . Allies Melted . | . . . . . . Intel | -11 -10 -10 -9 -9 -9 ------- Run | Yrd Mat Min Mat Min Exi Robot Analysis Total . | . . . . . . Derelict Logs Recovered 1 | . . 1 . . . Drone Launches . | . . . . . . Drone Recoveries . | . . . . . . Exploration | -11 -10 -10 -9 -9 -9 ------------- Run | Yrd Mat Min Mat Min Exi Turns Passed 2550 | 109 1009 379 670 111 272 Spaces Moved 1282 | 44 519 200 315 70 134 Core 6 | 6 . . . . . Treads 1068 | 38 519 179 128 70 134 Legs . | . . . . . . Wheels 208 | . . 21 187 . . Hover . | . . . . . . Flight . | . . . . . . Fastest Speed 50 | 50 160 115 85 160 160 Average Speed 149 | 146 160 155 120 160 160 Slowest Speed 240 | 160 160 160 240 160 240 Overloaded Moves . | . . . . . . Propulsion Burnouts . | . . . . . . Robots Hopped . | . . . . . . Cave-ins Triggered . | . . . . . . Exploration Rate (%) 37 | 4 83 43 32 20 41 Regions Visited 5 Branch Regions 3 Pre-discovered Areas . | . . . . . . Known Exits Taken 1 | . 1 . . . . Unknown Exits Taken 4 | 1 . 1 1 1 . Scrap Searched . | . . . . . . Spaces Dug . | . . . . . . Terrain Destroyed 78 | . . 33 . . 45 Melee . | . . . . . . Projectile . | . . . . . . AOE 78 | . . 33 . . 45 Terrain Rammed . | . . . . . . Walls Destroyed . | . . . . . . Machines Disabled . | . . . . . . Actions | -11 -10 -10 -9 -9 -9 --------- Run | Yrd Mat Min Mat Min Exi Total 1667 | 73 654 234 474 69 163 Wait 133 | 11 78 8 34 . 2 Move 1277 | 43 518 199 314 69 134 Hop . | . . . . . . Pick Up 28 | 6 9 2 10 . 1 Fast Attach 23 | 7 6 . 9 . 1 Attach 17 | . . 5 9 . 3 Detach 7 | . . . 2 . 5 Swap 16 | . 3 2 11 . . Drop 24 | . 6 . 13 . 5 Fire 142 | 6 34 18 72 . 12 Melee . | . . . . . . Ram . | . . . . . . Kick . | . . . . . . Crush . | . . . . . . Escape Stasis . | . . . . . . Rewire . | . . . . . . Trap . | . . . . . . Miscellaneous . | . . . . . . Route ------- -11/Scrapyard -10/Materials (discovered 4 exits: *Mat x3 / *Min) -10/Mines -9/Materials (discovered 2 exits: Mat / [*Min]) -9/Mines -9/Exiles History --------- Turn | Location | Event 10 | -11/Scrapyard | Discovered new exit (range 15) 110 | -11/Scrapyard | Entered Materials 316 | -10/Materials | Build established: Mutant 337 | -10/Materials | Discovered new exit (range 13) 680 | -10/Materials | Discovered new exit (range 14) 710 | -10/Materials | Derelicts attacked the area 817 | -10/Materials | Repaired Assault Rifle 950 | -10/Materials | Discovered new exit (range 15) 1007 | -10/Materials | Identified exit to Mines 1119 | -10/Materials | Entered Mines 1142 | -10/Mines | Met a Derelict bent on vengeance 1245 | -10/Mines | Assembled infested the area 1306 | -10/Mines | Core integrity fell below 50% 1368 | -10/Mines | Lost 4 parts (1p1n1u1w) 1443 | -10/Mines | Discovered new exit (range 9) 1474 | -10/Mines | Learned location of 1 exit from Materials 1498 | -10/Mines | Entered Materials 1498 | -9/Materials | Evolved 2 slots: Propulsion x2 1499 | -9/Materials | Identified exit to Materials 1955 | -9/Materials | Destroyed 12 combat bots 2010 | -9/Materials | Core integrity fell below 50% 2045 | -9/Materials | Lost 5 parts (3n2w) 2088 | -9/Materials | Discovered new exit (range 8) 2168 | -9/Materials | Entered Mines 2272 | -9/Mines | Deemed a non-threat by the Exiles lab entrance 2272 | -9/Mines | Discovered new exit (range 5) 2279 | -9/Mines | Entered Exiles 2318 | -9/Exiles | Met 8R-AWN 2334 | -9/Exiles | Build established: Scavenger-Mutant 2347 | -9/Exiles | Met EX-HEX 2395 | -9/Exiles | Met EX-BIN 2417 | -9/Exiles | Aligned with FarCom system 2419 | -9/Exiles | Given EX-Vault access code 2457 | -9/Exiles | Opened EX-Vault 2471 | -9/Exiles | Found YOLO Cannon 2480 | -9/Exiles | Attacked by the Exiles 2515 | -9/Exiles | Core integrity fell below 20% 2551 | -9/Exiles | Destroyed by 8R-AWN with 8R-AWN's Boregun Last Messages --------------- 02527_ Extracted 33 energy. 02528_ Extracted 65 energy. 02528_ Penetrated by HV Slug. 02532_ FO5K7GNFRTKES=JRNJ 02532_ Extracted 65 energy. 02532_ Penetrated by HV Slug. 02534_ Lgt. Treads destroyed. 02534_ Penetrated by HV Slug. 02534_ Critical hit (Destroy). 02534_ Lgt. Treads destroyed. 02536_ Extracted 65 energy. 02538_ Penetrated by HV Slug. 02540_ Extracted 22 energy. 02540_ HV Slug penetrates Wall. 02545_ Penetrated by HV Slug. 02547_ Acquired Hcp. Battery. 02547_ Penetrated by HV Slug. 02548_ Dropped Hcp. Battery. 02549_ Extracted 250 energy. 02549_ Penetrated by HV Slug. Map ----- +----------------------------------------------------+ | | | | | | | | | | | | | | | ????????????????????#########????????????????????? | | ????????????????????# ! ! #????????????????????? | | ????????????????????# ! ! #????????????????????? | | ????????????????????# !#????????????????????? | | ????????????????????# X#????????????????????? | | ??????????????????#### ##????????????????????? | | ??????????????????# ; #?????????????????????? | | ??????????????????# ;; #?????????????????????? | | ??????????????????## ; #?????????????????????? | | ???????????????????##; #???####??????????????? | | ????????????????????## #??"""""??????????????? | | ?????????????????????# ## """#?????????????? | | ?????????????????????# X""#?????????????? | | ?????????????????????# ## """#?????????????? | | ????????????????###??# #??"""""??????????????? | | ???????????????"""""?# #???####??????????????? | | ??????????????"""" ## #?????????????????????? | | ?????????????#""X" #?????????????????????? | | ?????????????#" @ #?????????????????????? | | ?????????????#" #; #?????????????????????? | | ?????????????#""""""## #?#########???????????? | | ?????????????##"###?#; #?#"""""""#???????????? | | ????????????????????## #?#"""""""#???????????? | | ?????????????????????# #?#"""""""#???????????? | | ????????????????????#; ###"" """"#???????????? | | ????????????????????; """"#???????????? | | ??????????????????? ; """#???????????? | | ??????????????????? ; """#???????????? | | ??????????????????# ; """#???????????? | | ??????????????????# ; """#???????????? | | ??????????????????##; """#???????????? | | ???????????????????### """"???????????? | | ?????????????????????; """#???????????? | | ?????????????????????#" "X" """"???????????? | | ?????????????????????#" """ #???????????? | | ?????????????????????#" """""""""#???????????? | | ????????????????????##" ###########???????????? | | ???????????????????##"" #?????????????????????? | | ?????????????????###"" #?????????????????????? | | ???????????????""""""" ##????????????????????? | | ??????????????""" " "" ##???###########?????? | | ????????????" """ " #####"""""""""##????? | | ????????????" " " """ """"##???? | +----------------------------------------------------+ Best States ------------- Heat Dissipation 28 Energy Generation 12 Energy Capacity 265 Matter Stores 394 Matter Capacity 500 Sight Range 18 Terrain Scan Range 14 Terrain Scan Density 10 Armor Coverage 150 Evasion (%) 42 Recoil Reduction 4 Item Schematics ----------------- Lrg. Battery | -9/Materials | Extracted Sensor Array | -9/Materials | Extracted Robot Schematics ------------------ None Fabricated ------------ Nothing Alien Tech Used ----------------- None Achievements -------------- None Challenges ------------ None Game ------ Seed PulseRocketKatana Manual? 0 Play Time 00:24:01 Cumulative 64.2 hours Start 2024.04.12 @ 22:47:04 End 2024.04.12 @ 23:09:12 Sessions 1 Manual Loads 0 Difficulty Rogue Special Mode None Game No. 75 Rogue 70 Adventurer 5 Explorer 0 Win Type - Total 2 Types 1/0/0/1/0/0/0/0/0 Lore% 29 Gallery% 52 Achievement% 41 Wizard Run 0 Options --------- Layout 1 ASCII 0 Keyboard 0 Movement Mouse Keybinds 0 Fullscreen 1 Font 24/Terminus Map View 50x35 Zoom Use 0% Tactical HUD 1 Map Filters NONE Filters NONE Steam 1 RUN: 8f7ba1de-c525-4aa2-8e81-134630ed5c5b